bitfinex-derivatives/quotes_ETHF0:USTF0_20260112
["timestamp","ask_amount","ask_price","bid_price","bid_amount"]
[1768244153538,0.16075,3113.2,3112.1,1.24106355]
[1768244154128,0.16075,3113.2,3111.9,1.24106355]
[1768244156327,0.16075,3113.2,3111.5,0.14545731]
[1768244156328,1.24106355,3113.0,3111.7,1.24106355]
[1768244160437,0.14022054,3113.1,3111.7,1.24106355]
[1768244160630,1.38128409,3113.1,3111.7,1.24106355]
[1768244161942,1.272,3113.1,3112.1,1.24106355]
[1768244163335,1.272,3113.1,3111.9,1.24106355]
[1768244163537,1.272,3113.1,3111.8,0.14545731]
[1768244163837,1.57297054,3113.2,3111.8,1.38652086]
[1768244164642,2.81403409,3113.2,3111.8,1.38652086]
[1768244164849,1.57297054,3113.2,3112.0,1.24106355]
[1768244166444,1.41222054,3113.2,3112.0,1.24106355]
[1768244167138,2.65328409,3113.2,3111.8,1.38652086]
[1768244167550,1.38562739,3113.0,3111.8,1.24106355]
[1768244168541,1.38562739,3113.0,3111.6,1.24106355]
[1768244172841,1.38562739,3113.0,3111.7,1.24106355]
[1768244173841,1.38562739,3113.0,3111.5,1.24106355]
[1768244174043,1.38562739,3113.0,3111.4,0.13794979]
[1768244174344,0.13624864,3112.9,3111.6,1.24106355]
[1768244177440,1.24106355,3112.2,3111.1,4.05767384]
[1768244177638,1.24106355,3112.2,3111.0,0.00251426]
[1768244177843,1.24106355,3112.4,3111.0,1.24357781]
[1768244178051,1.24106355,3112.2,3111.0,0.00251426]
[1768244179247,1.24106355,3112.2,3111.0,1.24357781]
[1768244182848,1.37731219,3112.2,3111.0,0.00251426]
[1768244183649,0.13624864,3112.2,3111.0,0.00251426]
[1768244183851,0.13624864,3112.0,3111.0,0.00251426]
[1768244185051,1.37731219,3111.9,3111.0,0.00251426]
[1768244185253,1.24106355,3111.5,3110.2,1.24106355]
[1768244185446,1.37731219,3111.5,3110.2,1.24106355]
[1768244185647,1.37731219,3111.5,3109.8,0.13707797]
[1768244185648,1.24106355,3111.3,3109.8,0.13707797]
[1768244185846,1.24106355,3111.3,3110.1,1.24106355]
[1768244186252,0.00283701,3111.3,3110.1,1.24415136]
[1768244186852,0.00283701,3111.3,3110.3,1.24106355]
[1768244187255,0.00283701,3111.3,3110.7,1.24106355]
[1768244187446,0.00283701,3111.3,3110.5,1.24106355]
[1768244187753,0.1608,3112.2,3111.2,1.24106355]
[1768244188652,0.16403517,3112.2,3111.2,1.24106355]
[1768244189050,0.16403517,3112.2,3110.7,0.13707797]
[1768244189250,0.16403517,3112.2,3110.9,1.24106355]
[1768244189954,1.40509872,3112.2,3110.9,1.24106355]
[1768244190655,1.54134736,3112.2,3110.9,1.24106355]
[1768244191354,0.30028381,3112.2,3110.7,0.13707797]
[1768244196544,0.13643359,3111.9,3110.1,0.13850684]
[1768244196749,0.13643359,3111.9,3110.2,0.13541903]
[1768244197347,0.13643359,3111.9,3110.5,1.37660671]
[1768244197562,0.00323517,3112.2,3110.6,0.13541903]
[1768244198654,0.13966876,3112.2,3110.6,0.13541903]
[1768244198854,0.13643359,3112.1,3110.6,0.13541903]
[1768244199460,0.13643359,3111.8,3110.1,0.00308781]
[1768244207964,0.13643359,3111.8,3110.2,0.13541903]
[1768244221071,0.13643359,3111.8,3110.4,1.37660671]
[1768244221377,0.13966876,3112.2,3110.5,0.13541903]
[1768244221678,1.74528408,3112.1,3110.5,0.13541903]
[1768244221878,0.33685049,3112.0,3110.5,0.13541903]
[1768244222073,0.33685049,3111.9,3110.5,0.13541903]
[1768244222270,0.33685049,3111.8,3110.5,0.13541903]
[1768244222471,1.40843359,3112.1,3110.5,0.13541903]
[1768244222670,0.33678771,3112.0,3110.5,0.13541903]
[1768244222871,0.33678771,3111.9,3110.5,0.13541903]
[1768244223072,0.33678771,3111.8,3110.5,0.13541903]
[1768244223273,1.40843359,3112.1,3110.5,0.13541903]
[1768244223473,0.3368533,3112.0,3110.5,0.13541903]
[1768244223682,0.3368533,3111.9,3110.5,0.13541903]
[1768244223979,0.3368533,3111.8,3110.5,0.13541903]
[1768244224185,0.3368533,3112.0,3110.5,0.13541903]
[1768244224373,1.40843359,3112.1,3110.5,0.13541903]
[1768244225077,0.33696816,3112.0,3110.5,0.13541903]
[1768244225381,0.33696816,3111.9,3110.5,0.13541903]
[1768244225589,0.33696816,3111.8,3110.5,0.13541903]
[1768244225882,1.40843359,3112.1,3110.5,0.13541903]
[1768244226082,0.3370066,3112.0,3110.5,0.13541903]
[1768244226284,0.3370066,3111.9,3110.5,0.13541903]
[1768244226485,0.3370066,3111.8,3110.5,0.13541903]
[1768244226668,0.14382575,3112.0,3110.5,0.13541903]
[1768244226875,0.33706788,3111.9,3110.5,0.13541903]
[1768244227076,0.33706788,3111.8,3110.5,0.13541903]
[1768244227278,0.14382575,3112.0,3110.3,1.40207768]
[1768244227593,0.14382575,3111.7,3110.3,1.40207768]
[1768244228081,0.14382575,3111.7,3110.3,0.16089]
[1768244231388,0.14382575,3111.7,3110.1,0.00308781]
[1768244231687,0.14382575,3111.4,3110.1,0.00308781]
[1768244231887,0.48101616,3111.3,3110.1,0.00308781]
[1768244232083,0.14382575,3111.3,3110.1,0.00308781]
[1768244241993,0.13385451,3112.0,3110.4,1.24118768]
[1768244242185,0.47036585,3111.9,3110.4,1.24118768]
[1768244242385,0.33651134,3111.8,3110.4,1.24118768]
[1768244242593,0.13385451,3111.9,3110.4,1.24118768]
[1768244245492,0.13385451,3111.7,3110.4,1.24118768]
[1768244245692,0.13385451,3111.7,3110.2,0.1609]
[1768244248097,0.13385451,3111.7,3110.1,0.1423627]
[1768244248397,0.13385451,3111.7,3110.1,0.00308781]
[1768244250182,0.13385451,3111.7,3110.2,1.24118768]
[1768244250386,0.13385451,3111.7,3110.2,1.38046257]
[1768244253292,0.13385451,3111.7,3110.7,1.24132158]
[1768244253998,0.13385451,3111.7,3111.1,1.24132158]
[1768244254299,0.13385451,3112.1,3111.1,1.24132158]
[1768244254500,0.33658118,3112.0,3111.1,1.24132158]
[1768244254797,0.13385451,3112.1,3111.1,1.24132158]
[1768244254989,0.33658337,3112.0,3111.1,1.24132158]
[1768244255194,0.13385451,3112.1,3111.1,1.24132158]
[1768244255395,0.3365809,3112.0,3111.1,1.24132158]
[1768244255597,0.13385451,3112.1,3111.1,1.24132158]
[1768244255794,0.33663703,3112.0,3111.1,1.24132158]
[1768244255996,0.13385451,3112.1,3111.1,1.24132158]
[1768244256302,0.33666901,3112.0,3111.1,1.24132158]
[1768244256498,0.13385451,3112.1,3111.1,1.24132158]
[1768244256699,0.33666544,3112.0,3111.1,1.24132158]
[1768244257000,0.13385451,3112.1,3111.1,1.24132158]
[1768244257200,0.33665145,3112.0,3111.1,1.24132158]
[1768244257396,0.00323517,3112.2,3111.1,1.24132158]
[1768244257703,0.00323517,3112.2,3111.6,1.24132158]
[1768244258203,0.13743264,3112.6,3111.8,1.24132158]
[1768244258502,0.29819264,3113.0,3111.8,1.24132158]
[1768244258803,1.40843264,3112.9,3111.8,1.24132158]
[1768244259300,1.41178039,3112.9,3111.8,1.24132158]
[1768244259504,1.41178039,3112.9,3111.6,1.24132158]
[1768244262601,0.14078039,3112.9,3111.6,1.24132158]
[1768244264298,0.14078039,3112.9,3111.1,0.13961913]
[1768244264299,0.16078,3112.6,3111.1,0.13961913]
[1768244264603,1.40210158,3112.6,3111.3,1.24132158]
[1768244270912,1.53953422,3112.6,3111.1,0.13961913]
[1768244271103,1.53953422,3112.6,3111.4,1.24132158]
[1768244272710,0.29821264,3112.6,3111.4,1.24132158]
[1768244272908,0.13743264,3112.6,3111.4,1.24132158]
[1768244273111,0.00334775,3112.9,3111.8,1.24132158]
[1768244273311,1.27434775,3112.9,3111.8,1.24132158]
[1768244274412,2.65310197,3112.9,3111.6,1.24132158]
[1768244275303,0.14078039,3112.9,3111.6,1.24132158]
[1768244278814,1.38210197,3112.9,3111.6,1.24132158]
[1768244279009,0.13743264,3112.8,3111.6,1.24132158]
[1768244279214,1.24132158,3112.5,3111.2,1.54179071]
[1768244279909,1.24132158,3112.5,3111.2,1.38094071]
[1768244280126,1.24132158,3112.5,3111.2,1.24132158]
[1768244280313,0.13743264,3112.4,3111.2,1.24132158]
[1768244282320,0.13743264,3112.4,3111.0,1.24132158]
[1768244282522,1.24132158,3112.1,3110.9,0.16086]
[1768244282722,0.13743264,3112.2,3110.9,0.16086]
[1768244283222,0.13743264,3111.8,3110.3,4.21856384]
[1768244283520,0.13743264,3111.8,3110.5,1.24132158]
[1768244284227,0.13743264,3111.8,3110.7,1.24132158]
[1768244292430,0.13743264,3111.8,3110.3,0.29963094]
[1768244292632,0.13743264,3111.8,3110.6,1.24132158]
[1768244293530,1.24132158,3112.1,3110.6,1.24132158]
[1768244293830,1.38411887,3112.1,3110.6,1.24132158]
[1768244295232,1.38411887,3112.1,3110.8,1.24132158]
[1768244301134,1.38411887,3112.1,3110.6,1.24132158]
[1768244301934,0.14279729,3112.0,3110.6,1.24132158]
[1768244302136,1.24132158,3111.9,3110.6,1.24132158]
[1768244302330,1.24132158,3111.3,3110.1,4.06076165]
[1768244302530,1.24132158,3110.9,3110.1,4.06076165]
[1768244302833,1.24132158,3111.1,3110.1,0.00308781]
[1768244303243,0.14279729,3111.2,3110.1,0.00308781]
[1768244325954,0.13489533,3111.0,3110.1,0.00308781]
[1768244330252,0.13489533,3110.8,3109.1,0.13625849]
[1768244331147,0.13489533,3110.8,3109.1,0.13934117]
[1768244341874,0.29577533,3110.7,3109.1,0.13934117]
[1768244342073,0.29939155,3110.7,3109.1,0.13934117]
[1768244344578,0.13306867,3110.6,3109.1,0.13934117]
[1768244349279,0.13306867,3110.6,3109.1,0.30030117]
[1768244354783,0.13306867,3110.6,3109.1,0.13934117]
[1768244355081,0.13475641,3110.5,3109.1,0.00308268]
[1768244356785,0.29564641,3110.5,3109.1,0.00308268]
[1768244356986,0.13475641,3110.4,3109.1,0.00308268]
[1768244359378,0.13475641,3110.0,3109.1,0.00308268]
[1768244373406,0.29567641,3109.9,3109.1,0.00308268]
[1768244374095,0.13475641,3109.9,3109.1,0.00308268]
[1768244377208,0.13475641,3109.9,3108.7,1.24284686]
[1768244378109,0.13475641,3109.9,3108.7,1.24651933]
[1768244378603,0.13415931,3109.6,3108.7,0.00367247]
[1768244382106,0.13415931,3110.0,3108.9,1.24284686]
[1768244382311,0.13415931,3110.0,3108.7,0.00367247]
[1768244382613,0.13415931,3110.0,3109.1,1.24284686]
[1768244383802,1.40373686,3110.5,3109.1,1.24284686]
[1768244384004,0.13415931,3110.3,3109.1,1.24284686]
[1768244387412,0.13415931,3110.3,3109.3,1.24284686]
[1768244389017,0.13415931,3110.3,3109.1,1.24284686]
[1768244391415,0.13777553,3110.7,3109.3,1.24284686]
[1768244391720,0.4684555,3110.6,3109.3,1.24284686]
[1768244392016,0.33429619,3110.5,3109.3,1.24284686]
[1768244392212,0.33429619,3110.4,3109.3,1.24284686]
[1768244392404,0.13415931,3110.5,3109.3,1.24284686]
[1768244392605,0.33428506,3110.4,3109.3,1.24284686]
[1768244392817,0.13415931,3110.5,3109.3,1.24284686]
[1768244393018,0.33428476,3110.4,3109.3,1.24284686]
[1768244393220,0.13415931,3110.5,3109.3,1.24284686]
[1768244393409,0.33427543,3110.4,3109.3,1.24284686]
[1768244393709,0.13415931,3110.5,3109.3,1.24284686]
[1768244393910,0.33427518,3110.4,3109.3,1.24284686]
[1768244394108,0.13415931,3110.5,3109.3,1.24284686]
[1768244394310,0.33427549,3110.4,3109.3,1.24284686]
[1768244394512,0.13415931,3110.5,3109.3,1.24284686]
[1768244394713,0.33426656,3110.4,3109.3,1.24284686]
[1768244394912,0.13415931,3110.5,3109.3,1.24284686]
[1768244395118,0.33426702,3110.4,3109.3,1.24284686]
[1768244395319,0.13415931,3110.5,3109.3,1.24284686]
[1768244395516,0.33425846,3110.4,3109.3,1.24284686]
[1768244395819,0.13415931,3110.5,3109.3,1.24284686]
[1768244396019,0.3342585,3110.4,3109.3,1.24284686]
[1768244396218,0.13415931,3110.5,3109.3,1.24284686]
[1768244396425,0.33425128,3110.4,3109.3,1.24284686]
[1768244396620,0.13415931,3110.5,3109.3,1.24284686]
[1768244396922,0.33425177,3110.4,3109.3,1.24284686]
[1768244397109,0.13415931,3110.5,3109.3,1.24284686]
[1768244397313,0.33425151,3110.4,3109.3,1.24284686]
[1768244397513,0.13415931,3110.5,3109.3,1.24284686]
[1768244397713,0.33424486,3110.4,3109.3,1.24284686]
[1768244397919,0.13415931,3110.5,3109.3,1.24284686]
[1768244398123,0.33424494,3110.4,3109.3,1.24284686]
[1768244398314,0.13415931,3110.5,3109.3,1.24284686]
[1768244398516,0.33423848,3110.4,3109.3,1.24284686]
[1768244398721,0.13415931,3110.5,3109.3,1.24284686]
[1768244399022,0.33423848,3110.4,3109.3,1.24284686]
[1768244399220,0.13415931,3110.5,3109.3,1.24284686]
[1768244399521,0.33423257,3110.4,3109.3,1.24284686]
[1768244399722,0.13415931,3110.5,3109.3,1.24284686]
[1768244399916,0.33423257,3110.4,3109.3,1.24284686]
[1768244400115,0.13415931,3110.5,3109.3,1.24284686]
[1768244400315,0.33423258,3110.4,3108.8,0.29513813]
[1768244400523,1.37700617,3110.2,3108.9,1.24284686]
[1768244400726,1.37700617,3109.6,3108.7,0.00367247]
[1768244401026,1.24284686,3109.1,3108.2,4.05767384]
[1768244401227,1.24284686,3109.3,3108.1,1.24284686]
[1768244401617,1.24284686,3109.3,3107.7,1.40387686]
[1768244401618,1.37700617,3109.3,3107.9,1.24284686]
[1768244401820,0.13415931,3109.3,3108.3,1.24284686]
[1768244402021,0.13415931,3109.7,3108.5,1.24284686]
[1768244402425,1.37700617,3109.7,3108.4,1.24284686]
[1768244403127,1.24284686,3109.1,3108.3,0.00361318]
[1768244403428,1.37700617,3109.3,3108.3,0.00361318]
[1768244403623,1.24284686,3109.1,3108.3,0.00361318]
[1768244403827,1.24284686,3108.5,3107.3,5.3005207]
[1768244404030,0.13415931,3108.8,3107.7,1.24284686]
[1768244404416,0.13330713,3109.2,3108.1,1.24284686]
[1768244404633,0.13330713,3109.2,3107.9,1.24284686]
[1768244404829,1.24284686,3109.1,3107.9,1.24598495]
[1768244405333,0.13330713,3108.8,3107.9,0.00313809]
[1768244405829,0.13691633,3109.2,3108.0,1.24284686]
[1768244406421,0.0036092,3109.2,3108.2,1.24284686]
[1768244406620,0.0036092,3109.2,3108.4,1.24284686]
[1768244407727,0.0036092,3109.2,3108.6,1.24284686]
[1768244408027,1.269,3109.8,3108.8,1.24284686]
[1768244408923,1.27291022,3109.8,3108.8,1.24284686]
[1768244409121,1.27291022,3109.8,3108.7,1.24284686]
[1768244409826,1.27291022,3109.8,3109.1,1.24284686]
[1768244411024,0.00391022,3109.8,3109.3,1.24284686]
[1768244411226,1.40230713,3110.4,3109.1,1.24284686]
[1768244411227,2.64515399,3110.4,3109.1,1.24284686]
[1768244411620,0.13330713,3110.3,3109.1,1.24284686]
[1768244411821,0.13330713,3110.3,3108.9,1.24284686]
[1768244411822,1.37615399,3110.3,3108.9,1.24284686]
[1768244412333,1.37978476,3110.3,3108.9,1.24284686]
[1768244412929,0.14190631,3110.0,3108.6,0.16098]
[1768244413125,1.24284686,3109.5,3108.3,1.24284686]
[1768244413630,1.24284686,3109.3,3107.9,0.00313809]
[1768244413827,1.24284686,3109.1,3107.9,0.00313809]
[1768244414536,1.38475317,3109.3,3107.9,0.00313809]
[1768244416134,1.38475317,3109.3,3108.0,1.24284686]
[1768244416537,0.14190631,3109.2,3107.9,0.00313809]
[1768244416732,1.38475317,3109.1,3107.9,0.00313809]
[1768244417134,0.14190631,3109.0,3107.9,0.00313809]
[1768244419133,1.04294,3109.4,3107.9,0.00313809]
[1768244419134,0.14190631,3108.8,3107.9,0.00313809]
[1768244419340,1.38475317,3108.7,3107.9,0.00313809]
[1768244419535,0.14190631,3108.6,3107.9,0.00313809]
[1768244421042,0.14190631,3108.6,3107.5,1.24284686]
[1768244422142,0.14190631,3108.6,3107.5,1.24581725]
[1768244422440,1.24284686,3108.2,3107.5,0.00297039]
[1768244422650,1.24284686,3108.0,3106.6,1.38024397]
[1768244422848,0.14190631,3108.3,3105.7,9.85435076]
[1768244422849,1.24284686,3107.4,3106.1,0.13739711]
[1768244423046,1.24284686,3107.6,3106.2,1.24284686]
[1768244423239,1.38475317,3107.8,3106.4,1.24284686]
[1768244423639,1.38836209,3107.8,3106.4,1.24623207]
[1768244424847,0.14551523,3107.8,3106.8,1.24284686]
[1768244425441,0.00360892,3107.8,3107.0,1.24284686]
[1768244425647,0.00360892,3107.8,3107.2,1.24284686]
[1768244427152,0.14190631,3108.6,3107.6,1.24284686]
[1768244427347,0.14190631,3107.8,3106.4,0.00338521]
[1768244427545,0.14190631,3107.6,3106.4,0.00338521]
[1768244428249,0.14594881,3107.6,3106.4,0.00338521]
[1768244429150,1.41594881,3107.6,3106.4,0.00338521]
[1768244430749,0.14190631,3107.5,3106.4,0.00338521]
[1768244431057,0.14190631,3107.4,3105.4,0.13739711]
[1768244431547,0.30295631,3107.4,3105.4,0.13739711]
[1768244431755,0.14190631,3107.3,3105.4,0.13739711]
[1768244432142,0.14190631,3107.3,3105.4,0.14031364]
[1768244434055,0.16105,3107.4,3105.4,0.00291653]
[1768244434056,0.30297631,3107.0,3105.4,0.00291653]
[1768244434253,0.14190631,3106.9,3105.4,0.00291653]
[1768244434950,0.30297631,3106.9,3105.4,0.00291653]
[1768244435254,1.99127593,3107.4,3105.4,0.00291653]
[1768244435255,0.13364773,3106.8,3105.4,0.00291653]
[1768244436654,0.13364773,3106.6,3105.4,0.00291653]
[1768244437556,0.13364773,3106.5,3105.4,0.00291653]
[1768244438459,0.13364773,3106.1,3104.3,0.13337859]
[1768244439547,0.13364773,3106.1,3104.3,0.13683512]
[1768244440850,0.13364773,3105.9,3104.3,0.00345653]
[1768244441047,0.13364773,3105.8,3104.3,0.00345653]
[1768244441246,0.29477773,3105.8,3104.3,0.00345653]
[1768244441554,0.13364773,3105.7,3104.3,0.00345653]
[1768244443958,0.29478773,3105.7,3104.3,0.00345653]
[1768244444156,0.13364773,3105.5,3104.3,0.00345653]
[1768244444656,0.13364773,3105.3,3104.3,0.00345653]
[1768244444858,0.13677404,3105.3,3104.3,0.00345653]
[1768244445045,0.00312631,3105.3,3104.3,0.00345653]
[1768244450054,0.00312631,3105.3,3104.3,0.13683512]
[1768244450254,0.13364773,3106.1,3104.4,0.13337859]
[1768244450458,0.13364773,3106.5,3105.0,0.29454859]
[1768244450760,0.13364773,3106.9,3105.0,0.29454859]
[1768244450962,1.08793967,3106.8,3105.0,0.29454859]
[1768244451151,0.1359485,3106.8,3105.0,0.29454859]
[1768244451351,0.13364773,3106.6,3105.0,0.13337859]
[1768244452660,0.13364773,3106.6,3104.6,0.13337859]
[1768244452852,0.13364773,3106.5,3104.6,0.13337859]
[1768244454358,0.1611,3106.4,3104.6,0.13337859]
[1768244455866,0.29474773,3106.4,3104.6,0.13337859]
[1768244456470,0.13364773,3106.3,3104.6,0.13337859]
[1768244458561,0.13364773,3106.3,3104.5,0.1612]
[1768244459163,1.09228836,3106.2,3104.5,0.1612]
[1768244459363,0.13364773,3106.2,3104.5,0.1612]
[1768244459772,0.13364773,3106.2,3104.5,0.29457859]
[1768244460773,0.1611,3106.4,3104.6,0.13337859]
[1768244461059,0.1359485,3106.8,3104.9,0.13337859]
[1768244461267,0.95933511,3106.7,3104.9,0.13337859]
[1768244461470,0.95933511,3106.6,3104.9,0.13337859]
[1768244461762,0.95933511,3106.5,3104.9,0.13337859]
[1768244461958,0.95933511,3106.4,3104.9,0.13337859]
[1768244462262,0.13364773,3106.2,3104.4,0.13337859]
[1768244462452,0.13364773,3106.0,3104.4,0.13337859]
[1768244463659,1.09329371,3105.9,3104.3,0.00345653]
[1768244463859,0.13364773,3105.9,3104.3,0.00345653]
[1768244464661,0.13364773,3105.9,3104.3,0.31182035]
[1768244464866,0.1437343,3106.4,3104.5,0.14715382]
[1768244465069,0.96005085,3106.3,3104.5,0.14715382]
[1768244465366,0.96005085,3106.2,3104.5,0.14715382]
[1768244465567,0.1437343,3106.4,3104.6,0.14715382]
[1768244465568,0.96005085,3106.1,3104.6,0.14715382]
[1768244465865,0.1437343,3106.4,3104.6,0.14715382]
[1768244466059,0.96025091,3106.3,3104.6,0.14715382]
[1768244466255,0.96025091,3106.2,3104.8,0.14715382]
[1768244466459,0.16109,3106.5,3104.8,0.14715382]
[1768244466662,0.96037521,3106.4,3104.8,0.14715382]
[1768244466967,0.96037521,3106.3,3104.8,0.14715382]
[1768244467170,0.16109,3106.5,3104.8,0.14715382]
[1768244467373,0.96048853,3106.4,3104.8,0.14715382]
[1768244467558,0.16109,3106.5,3104.8,0.14715382]
[1768244467754,0.96044725,3106.4,3104.8,0.14715382]
[1768244467966,0.16109,3106.5,3104.8,0.14715382]
[1768244468268,0.96042709,3106.4,3104.8,0.14715382]
[1768244468467,0.16109,3106.5,3104.8,0.14715382]
[1768244468668,0.96034236,3106.4,3104.8,0.14715382]
[1768244468870,0.16109,3106.5,3104.8,0.14715382]
[1768244469169,0.9603404,3106.4,3104.8,0.14715382]
[1768244469370,0.16109,3106.5,3104.8,0.14715382]
[1768244469565,0.96016294,3106.4,3104.8,0.14715382]
[1768244469760,0.1437343,3106.3,3104.4,0.14715382]
[1768244469966,0.1437343,3106.2,3104.4,0.14715382]
[1768244470562,0.1437343,3106.2,3104.3,0.16466653]
[1768244470962,0.1437343,3106.0,3104.3,0.16466653]
[1768244471369,0.1437343,3106.0,3104.3,0.00345653]
[1768244471565,1.1036802,3105.9,3104.3,0.00345653]
[1768244471765,0.1437343,3105.9,3104.3,0.00345653]
[1768244473374,0.14397904,3106.3,3104.6,0.14589865]
[1768244473574,0.96022927,3106.2,3104.6,0.14589865]
[1768244473769,0.96022927,3106.1,3104.6,0.14589865]
[1768244473971,0.14397904,3106.3,3104.7,0.30708865]
[1768244476379,0.14397904,3106.3,3104.8,0.14589865]
[1768244476670,3.52805904,3106.7,3104.8,0.14589865]
[1768244476867,1.10505677,3106.6,3104.8,0.14589865]
[1768244477064,0.96107773,3106.5,3104.8,0.14589865]
[1768244477273,0.00230077,3106.8,3105.1,0.14589865]
[1768244477465,0.9610935,3106.7,3105.1,0.14589865]
[1768244477666,0.9610935,3106.6,3105.1,0.14589865]
[1768244477867,0.9610935,3106.5,3105.1,0.14589865]
[1768244478068,0.14627981,3106.8,3105.1,0.14589865]
[1768244478270,0.96108456,3106.7,3105.1,0.14589865]
[1768244478471,0.96108456,3106.6,3105.1,0.14589865]
[1768244478671,0.96108456,3106.5,3105.1,0.14589865]
[1768244478971,0.14627981,3106.8,3105.1,0.14589865]
[1768244479171,0.9609003,3106.7,3105.1,0.14589865]
[1768244479371,0.9609003,3106.6,3105.1,0.14589865]
[1768244479578,0.9609003,3106.5,3105.1,0.14589865]
[1768244479783,0.14397904,3106.7,3105.1,0.14589865]
[1768244480078,0.96105645,3106.6,3105.1,0.14589865]
[1768244480264,0.96105645,3106.5,3105.1,0.14589865]
[1768244480468,0.14397904,3106.7,3105.1,0.14589865]
[1768244480668,0.9614037,3106.6,3105.1,0.14589865]
[1768244480869,0.9614037,3106.5,3105.1,0.14589865]
[1768244481169,0.14397904,3106.7,3105.1,0.14589865]
[1768244481364,0.96134534,3106.6,3105.1,0.14589865]
[1768244481572,0.96134534,3106.5,3105.1,0.14589865]
[1768244481769,0.14397904,3106.7,3105.1,0.14589865]
[1768244482065,0.96162368,3106.6,3105.1,0.14589865]
[1768244482265,0.14397904,3106.7,3105.1,0.14589865]
[1768244482477,0.96156262,3106.6,3105.1,0.14589865]
[1768244482681,0.14397904,3106.7,3105.1,0.14589865]
[1768244482981,0.96156936,3106.6,3105.1,0.14589865]
[1768244483280,0.14397904,3106.7,3105.0,0.16117]
[1768244483481,0.14397904,3106.5,3105.0,0.16117]
[1768244485078,0.14397904,3106.5,3105.0,0.30706865]
[1768244485278,0.00230077,3106.8,3105.1,0.30705865]
[1768244485473,0.00230077,3106.8,3105.3,0.30704865]
[1768244487082,0.00230077,3106.8,3105.3,0.14589865]
[1768244487283,0.14627981,3106.8,3105.1,0.16116]
[1768244487781,0.14397904,3106.7,3104.6,4.05767384]
[1768244487972,0.14397904,3106.6,3104.6,4.21886384]
[1768244488168,0.14397904,3106.6,3104.6,0.16119]
[1768244489669,0.14397904,3106.5,3104.6,0.16119]
[1768244489879,0.14397904,3106.4,3104.6,0.16119]
[1768244490676,0.14397904,3106.3,3104.5,0.14589865]
[1768244490873,0.14397904,3106.2,3104.5,0.14589865]
[1768244497183,0.14397904,3106.2,3104.4,0.1612]
[1768244497585,0.14397904,3106.2,3104.4,4.21887384]
[1768244498290,0.14397904,3106.2,3104.5,0.1612]
[1768244500485,0.14111788,3105.8,3104.4,4.05767384]
[1768244500689,0.14111788,3105.7,3104.4,4.05767384]
[1768244500888,0.14111788,3105.7,3104.3,0.00345653]
[1768244501193,0.14111788,3105.2,3104.3,0.00345653]
[1768244502193,0.30228788,3105.0,3103.2,4.19680399]
[1768244502389,0.16118,3104.9,3103.2,0.13913015]
[1768244503192,0.16118,3104.9,3103.2,0.14213629]
[1768244505889,0.13711839,3104.8,3103.2,6.29e-06]
[1768244506100,0.13697037,3104.6,3103.2,6.29e-06]
[1768244506897,0.30138376,3104.6,3103.2,6.29e-06]
[1768244507593,0.00322339,3104.6,3103.2,6.29e-06]
[1768244507994,0.00322339,3104.6,3103.2,0.13913644]
[1768244509496,0.13962614,3104.6,3103.2,6.29e-06]
[1768244509692,0.1612,3104.4,3103.2,6.29e-06]
[1768244510700,0.29723002,3104.4,3103.2,6.29e-06]
[1768244511302,2.1293406,3104.4,3103.2,6.29e-06]
[1768244511500,0.16123,3103.9,3102.1,0.13913015]
[1768244511806,0.13603002,3103.8,3101.5,0.05609443]
[1768244512103,3.224,3103.7,3101.6,0.13913015]
[1768244512306,0.16128,3103.0,3101.2,0.25465566]
[1768244512600,0.13569008,3103.3,3101.2,0.25465566]
[1768244512601,0.16128,3102.9,3101.2,0.00393987]
[1768244513404,0.16128,3102.9,3101.2,0.14307002]
[1768244514293,0.28604343,3102.9,3101.2,0.14307002]
[1768244516295,0.16129,3102.7,3101.2,0.00393987]
[1768244517700,0.12473413,3102.8,3101.2,0.00393987]
[1768244517906,0.1613,3102.5,3101.2,0.00393987]
[1768244520708,4.65627,3103.2,3101.2,0.14307002]
[1768244521210,0.16124,3103.6,3101.6,0.13913015]
[1768244521504,0.16125,3103.5,3101.6,0.13913015]
[1768244522308,0.16126,3103.3,3101.6,0.13913015]
[1768244524708,0.16128,3102.9,3101.2,0.00393987]
[1768244525005,0.16128,3102.9,3101.2,0.14666024]
[1768244527910,0.12716635,3103.1,3101.2,0.14666024]
[1768244528412,0.16131,3102.4,3101.2,0.00393987]
[1768244528605,0.16406422,3102.4,3101.2,0.00393987]
[1768244529306,0.00275422,3102.4,3101.2,0.00393987]
[1768244529501,0.16132,3102.1,3101.2,0.00393987]
[1768244530912,0.16133,3102.0,3101.2,0.00393987]
[1768244531111,0.16134,3101.7,3100.0,0.14272037]
[1768244531312,0.16135,3101.6,3100.0,0.14272037]
[1768244532205,0.16135,3101.6,3100.0,0.1456765]
[1768244532415,0.16132,3102.2,3100.0,0.1456765]
[1768244532614,0.95782754,3102.1,3100.0,0.1456765]
[1768244532818,0.16132,3102.2,3100.0,0.1456765]
[1768244533114,0.16132,3102.2,3100.4,0.13936719]
[1768244533305,0.00275422,3102.4,3100.9,0.13936719]
[1768244539318,0.96184709,3102.3,3100.9,0.13936719]
[1768244539513,0.00275422,3102.4,3100.9,0.13936719]
[1768244539718,0.96189799,3102.3,3100.9,0.13936719]
[1768244539920,0.00275422,3102.4,3100.9,0.13936719]
[1768244540220,0.96197849,3102.3,3100.9,0.13936719]
[1768244540419,0.96197849,3102.2,3100.9,0.13936719]
[1768244540623,0.16131,3102.3,3100.9,0.13936719]
[1768244540822,0.96283334,3102.2,3100.9,0.13936719]
[1768244541024,0.16131,3102.3,3100.9,0.13936719]
[1768244541212,0.96283413,3102.2,3100.9,0.13936719]
[1768244541412,0.96283413,3102.1,3100.9,0.13936719]
[1768244541612,0.16131,3102.3,3100.9,0.13936719]
[1768244541822,0.96402994,3102.2,3100.9,0.13936719]
[1768244542022,0.96402994,3102.1,3100.9,0.13936719]
[1768244542324,0.16131,3102.3,3100.9,0.13936719]
[1768244542525,0.96407817,3102.2,3100.9,0.13936719]
[1768244542824,0.16131,3102.3,3100.9,0.13936719]
[1768244542825,0.96407817,3102.1,3100.9,0.13936719]
[1768244543029,0.16131,3102.3,3101.0,0.13936719]
[1768244545323,0.96400653,3102.2,3101.0,0.13936719]
[1768244545527,0.96395634,3102.1,3100.6,0.13936719]
[1768244545712,0.16133,3101.9,3100.6,0.13936719]
[1768244546222,0.16134,3101.7,3100.6,0.13936719]
[1768244547018,0.16131,3102.3,3100.6,0.13936719]
[1768244547223,0.96340464,3102.2,3100.6,0.13936719]
[1768244547425,0.96340464,3102.1,3100.6,0.13936719]
[1768244547723,0.96340464,3102.0,3100.6,0.13936719]
[1768244547926,0.96340464,3101.9,3100.6,0.13936719]
[1768244548117,0.16132,3102.2,3100.6,0.13936719]
[1768244548318,1.11981284,3102.1,3100.6,0.13936719]
[1768244548524,1.11982284,3102.0,3100.6,0.13936719]
[1768244548822,1.1198876,3101.9,3100.6,0.13936719]
[1768244549023,0.16133,3101.9,3100.6,0.13936719]
[1768244549223,0.13765021,3102.2,3100.1,0.13936719]
[1768244549425,0.16135,3101.6,3100.1,0.13936719]
[1768244549625,0.13765021,3102.0,3100.1,0.13936719]